Cogmind - Beta 10.2 @@@ ROGUE MODE // 2020.11.17 @ 01:22:22 // Halloween2020/ForbiddenLore Player: rusmal Result: Destroyed by H-88 Terminator with KE Penetrator Performance ------------- Evolutions (9) 4500 Regions Visited (22) 4400 Robots Destroyed (244) 1220 Value Destroyed (12576) 12576 Prototype IDs (77) 1540 Alien Tech Used (2) 400 Bonus (3117) 3117 TOTAL SCORE: 27753 Bonus ------- High Alert Combat Kills 776 Follower Combat Kills 1243 Aligned with FarCom 300 Met Data Miner 300 Met Zhirov 300 Met R17 at Cetus 500 Friendly Fire -302 Cogmind --------- Core Integrity 0/1600 Matter 300/300 Energy 78/100 System Corruption 37% Temperature Cool (0) Movement Core (50) Location -1/Access Parts ------- > --- POWER (2) -------- (None) > --- PROPULSION (4) --- (None) > --- UTILITY (14) ----- (None) > --- WEAPON (5) ------- (None) > --- INVENTORY (4) ---- Armored Heavy Treads Armored Heavy Treads Peak State ------------ > --- POWER ------------ Antimatter Reactor Light Particle Reactor > --- PROPULSION ------- Centrium Heavy Treads Advanced Heavy Siege Treads > --- UTILITY ---------- Improved Heat Shielding Advanced Heat Sink Advanced Heat Sink Experimental Heat Sink Large Storage Unit High-capacity Storage Unit Experimental Energy Well Experimental Energy Well Advanced Signal Interpreter Advanced Targeting Computer Advanced Core Analyzer Improved Stasis Canceller Improved Heavy Armor Plating > --- WEAPON ----------- Gamma Rifle Gamma Rifle Quantum Rifle Nova Cannon Enhanced Nova Cannon > --- INVENTORY -------- Particle Reactor Spiked Heavy Treads Armored Heavy Treads Armored Heavy Treads Armored Heavy Treads Antimissile System Gamma Rifle Gamma Rifle Gamma Rifle Gamma Rifle Railgun Railgun Smartbomb Launcher [Rating: 182] Favorites ----------- Power Light Angular Momentum Engine Engine Light Angular Momentum Engine Power Core Light Nuclear Core Reactor Heavy Antimatter Reactor Propulsion Armored Treads Treads Armored Treads Leg Flexi-carbon Leg Wheel Armored Huge Wheel Utility Large Storage Unit Device Advanced Heat Sink Storage Large Storage Unit Processor Advanced Signal Interpreter Hackware Improved Hacking Suite Protection Centrium Medium Armor Plating Weapon Gamma Rifle Energy Gun Gamma Rifle Energy Cannon Heavy Proton Cannon Ballistic Gun Improved KE Penetrator Ballistic Cannon Gauss Cannon Launcher Precision Rocket Launcher Special Weapon Advanced Remote Datajack Slashing Weapon Plasma Sword Build | -11 -10 -10 -10 -9 -8 -7 -6 -6 -6 -6 -5 -5 -5 -5 -4 -4 -4 -4 -3 -3 -2 -1 ------- Run | Scr Mat Min Exi Min Mat Fac Fac Low Low Dat Pro Fac Ext Cet Fac Upp Upp Zhi Pro Res Res Acc Slots Evolved 18 | . . . . . 4 2 2 . . . . 2 . . 2 . . . . 2 2 2 Power 1 | . . . . . . . . . . . . . . . 1 . . . . . . . Propulsion 2 | . . . . . 2 . . . . . . . . . . . . . . . . . Utility 12 | . . . . . 2 2 1 . . . . 2 . . 1 . . . . 1 2 1 Weapon 3 | . . . . . . . 1 . . . . . . . . . . . . 1 . 1 Parts Attached 298 | 6 22 2 1 . 30 19 16 1 3 2 4 34 21 14 9 6 9 5 2 44 11 37 Power 35 | 1 3 . . . 2 3 2 1 . . 2 3 2 3 1 2 2 1 . 2 2 3 Engine 10 | 1 1 . . . . 3 2 1 . . 2 . . . . . . . . . . . Core 12 | . 2 . . . 2 . . . . . . 3 2 1 . . 1 . . . . 1 Reactor 13 | . . . . . . . . . . . . . . 2 1 2 1 1 . 2 2 2 Propulsion 54 | 2 6 . . . 13 1 2 . 1 . 2 5 8 1 . . 1 . . 4 2 6 Treads 41 | . 6 . . . 13 1 2 . 1 . 2 1 1 1 . . 1 . . 4 2 6 Leg 5 | 2 . . . . . . . . . . . . 3 . . . . . . . . . Wheel 8 | . . . . . . . . . . . . 4 4 . . . . . . . . . Hover . | . . . . . . . . . . . . . . . . . . . . . . . Flight . | . . . . . . . . . . . . . . . . . . . . . . . Utility 95 | 1 6 . 1 . 5 8 4 . . . . 10 3 6 4 2 2 3 1 24 5 10 Device 34 | . . . . . 3 3 1 . . . . 2 . 4 . 2 1 1 1 10 2 4 Storage 19 | 1 6 . 1 . . 2 . . . . . 1 . 1 1 . . . . 3 1 2 Processor 11 | . . . . . . 2 2 . . . . 1 2 . . . 1 . . 3 . . Hackware 2 | . . . . . . . . . . . . 2 . . . . . . . . . . Protection 29 | . . . . . 2 1 1 . . . . 4 1 1 3 . . 2 . 8 2 4 Artifact . | . . . . . . . . . . . . . . . . . . . . . . . Weapon 114 | 2 7 2 . . 10 7 8 . 2 2 . 16 8 4 4 2 4 1 1 14 2 18 Energy Gun 47 | 2 6 . . . 6 1 4 . 1 . . 2 1 1 1 . . . . 9 . 13 Energy Cannon 13 | . . . . . . . . . . . . 5 . . 1 . 2 . . 2 2 1 Ballistic Gun 25 | . 1 1 . . 4 3 . . 1 . . 3 1 2 1 1 . 1 1 3 . 2 Ballistic Cannon 5 | . . . . . . 3 . . . . . 1 . . . . 1 . . . . . Launcher 14 | . . 1 . . . . 3 . . 1 . 1 3 1 . 1 1 . . . . 2 Special Weapon 2 | . . . . . . . 1 . . 1 . . . . . . . . . . . . Impact Weapon . | . . . . . . . . . . . . . . . . . . . . . . . Slashing Weapon 8 | . . . . . . . . . . . . 4 3 . 1 . . . . . . . Piercing Weapon . | . . . . . . . . . . . . . . . . . . . . . . . Special Melee Weapon . | . . . . . . . . . . . . . . . . . . . . . . . Unidentified Prototypes 24 | . . . . . 4 1 1 . . . . 3 1 5 1 . . 4 1 3 . . Parts Lost 79 | . 2 . . . 2 1 1 . 1 . 1 9 11 . . 4 1 . . 14 3 29 Power 10 | . 1 . . . . . . . . . 1 . 2 . . 1 . . . 1 . 4 Propulsion 11 | . . . . . 1 . . . . . . 2 4 . . . . . . 1 . 3 Utility 26 | . . . . . 1 . 1 . . . . 3 3 . . 1 1 . . 5 3 8 Weapon 32 | . 1 . . . . 1 . . 1 . . 4 2 . . 2 . . . 7 . 14 Highest Loss Streak 20 | . 2 . . . 1 1 1 . 1 . 1 4 10 . . 4 1 . . 3 2 20 Average Slot Usage (%) 91 | . 97 100 100 100 98 99 99 100 95 93 93 89 74 80 83 79 83 85 89 86 84 73 Engine 2 | . 4 . . . . 5 6 6 6 6 6 1 . . . . . . . . . . Core 3 | . 9 14 14 14 8 1 . . . . . 3 5 3 . . . 5 5 . . . Reactor 2 | . . . . . . . . . . . . . . 1 9 10 9 5 5 8 8 6 Treads 18 | . 27 28 28 28 35 30 25 26 26 26 26 5 . 10 10 10 10 10 10 8 8 7 Device 11 | . . . . . 13 13 20 20 20 20 20 8 . 8 5 8 12 12 18 18 17 15 Storage 15 | . 25 28 28 28 18 15 13 13 13 13 13 11 12 12 15 15 15 15 15 10 12 12 Processor 10 | . . . . . . 15 12 13 13 13 13 16 19 11 10 10 12 15 15 12 14 11 Hackware 1 | . . . . . . . . . . . . 10 6 . . . . . . . . . Protection 3 | . . . . . 4 1 . . . . . 1 4 10 14 11 10 7 1 6 4 4 Energy Gun 5 | . 24 . . . 6 1 6 . . . . 1 . 10 9 1 . . . 6 8 8 Energy Cannon 1 | . . . . . . . . . . . . 5 . . . . 4 5 5 3 5 3 Ballistic Gun 5 | . 3 14 14 14 11 7 6 6 5 6 6 2 2 4 5 7 2 1 5 6 2 1 Ballistic Cannon 1 | . . . . . . 5 6 6 2 . . 4 . . . . . . . . . . Launcher 2 | . . 14 14 14 . . . 6 6 . 6 . 3 . . 1 3 5 5 . . . Naked Turns 43 | . . . . . . . . . . . . . . . . . . . . . . 43 Heaviest Build 156 | 10 43 44 44 44 48 55 66 63 64 62 62 75 69 100 123 123 96 105 105 137 147 156 Greatest Support 160 | 20 46 46 46 46 92 80 88 88 88 88 91 86 70 150 150 150 155 155 155 155 145 160 Greatest Overweight (x) 4 | . 1 . . . . . . . . . . 2 4 . . . . . . 1 1 1 Average Overweight (x) . | . . . . . . . . . . . . . 1 . . . . . . . . . Largest Inventory Capacity 18 | 6 16 16 16 16 16 16 16 16 16 16 16 16 16 16 16 16 16 16 16 16 18 18 Average Capacity 15 | 5 14 16 16 16 16 16 16 16 16 16 16 16 16 16 16 16 16 16 16 11 17 17 Most Carried 18 | 6 16 16 16 16 16 16 16 16 16 14 16 16 16 16 16 16 16 16 16 16 18 18 Average Carried 14 | 3 13 15 15 15 14 15 15 16 14 14 15 15 13 15 15 14 15 15 15 10 13 15 Final Capacity 18 | 6 16 16 16 16 16 16 16 16 16 16 16 16 16 16 16 16 16 16 16 10 18 4 Final Carried 18 | 6 16 16 16 16 16 16 16 16 14 14 15 15 16 16 16 15 16 16 16 10 18 4 Class Distribution -------------------- 29% | Mutant 21% | Skirmisher 16% | Scavenger-Tank 12% | Scavenger-Gunner 6% | Scavenger-Mutant 5% | Gunner 4% | Hacker-Skirmisher 3% | Hacker-Mutant Dominant Class ---------------- Mutant | -10/Materials Mutant | -10/Mines Mutant | -10/Exiles Mutant | -9/Mines Mutant | -8/Materials Skirmisher | -7/Factory Skirmisher | -6/Factory Mutant | -6/Lower Caves Gunner | -6/Lower Caves Mutant | -6/Data Miner Gunner | -5/Proximity Caves Hacker-Skirmisher | -5/Factory Mutant | -5/Extension Scavenger-Tank | -5/Cetus Scavenger-Tank | -4/Factory Scavenger-Tank | -4/Upper Caves Scavenger-Mutant | -4/Upper Caves Scavenger-Mutant | -4/Zhirov Scavenger-Gunner | -3/Proximity Caves Scavenger-Gunner | -3/Research Scavenger-Gunner | -2/Research Scavenger-Gunner | -1/Access Resources | -11 -10 -10 -10 -9 -8 -7 -6 -6 -6 -6 -5 -5 -5 -5 -4 -4 -4 -4 -3 -3 -2 -1 ----------- Run | Scr Mat Min Exi Min Mat Fac Fac Low Low Dat Pro Fac Ext Cet Fac Upp Upp Zhi Pro Res Res Acc Matter Collected 6893 | 193 281 70 20 . 696 343 538 48 280 . 177 853 303 633 108 189 285 . 292 704 153 727 Remotely . | . . . . . . . . . . . . . . . . . . . . . . . Salvage Created 12210 | . 566 40 . . 959 636 647 . 276 . 708 1210 282 177 203 644 625 . 443 2508 262 2024 Parts 617 | . 27 4 . . 54 37 29 . 18 . 28 49 8 8 12 25 15 . 19 168 18 98 Haulers Intercepted 15 | . 2 . . . 5 1 1 . . . . 2 . . . . . . 1 2 . 1 Recyclers Shooed 9 | . . . . . . . . . . . . 3 2 . . . . . . . . 4 Parts Field Recycled . | . . . . . . . . . . . . . . . . . . . . . . . Retrieved Matter . | . . . . . . . . . . . . . . . . . . . . . . . Parts Self-Destructed 80 | . . . . . . . . . 21 . 24 . . . . 22 2 . 11 . . . Prevented 5 | . . . . . . . . . . . . . . . . . 3 . 2 . . . Kills | -11 -10 -10 -10 -9 -8 -7 -6 -6 -6 -6 -5 -5 -5 -5 -4 -4 -4 -4 -3 -3 -2 -1 ------- Run | Scr Mat Min Exi Min Mat Fac Fac Low Low Dat Pro Fac Ext Cet Fac Upp Upp Zhi Pro Res Res Acc Combat Hostiles Destroyed 197 | . 9 1 . . 12 11 12 . 5 . 17 17 6 3 3 13 13 . 11 34 2 28 Melee 5 | . . . . . . . . . . . . 1 4 . . . . . . . . . Guns 101 | . 9 . . . 12 6 5 . 4 . 13 5 . 2 3 12 2 . . 20 . 8 Cannons 41 | . . . . . . 4 7 . . . . 7 . . . . 1 . 2 13 1 6 AOE 46 | . . 1 . . . 1 . . 1 . 4 4 2 1 . 1 10 . 9 . . 12 Classes Destroyed 15 | . 4 1 . . 3 5 . . 1 . . . . . . . . . . 1 . . Worker 8 | . . . . . . 2 . . . . . . . . . . . . . . . 6 Builder 7 | . . . . . . 1 . . . . . . 1 . . . . . . 1 . 4 Hauler 15 | . 2 . . . 5 1 1 . . . . 2 . . . . . . 1 2 . 1 Recycler 8 | . . . . . 2 1 . . . . . 3 . . . . . . . . . 2 Operator 2 | . 1 . . . . 1 . . . . . . . . . . . . . . . . Watcher 6 | . 1 . . . . 1 . . . . . 1 . 1 . . . . . 1 . 1 Swarmer 27 | . . . . . 1 2 . . . . 5 4 . . . 3 . . 5 5 . 2 Grunt 77 | . 9 . . . 5 4 4 . 2 . 11 6 1 1 . 7 11 . 5 5 . 6 Brawler 4 | . . . . . . 1 1 . . . 1 . . . . 1 . . . . . . Duelist 2 | . . . . . . 1 1 . . . . . . . . . . . . . . . Sentry 23 | . . 1 . . 4 1 2 . 1 . . 2 2 . 2 . 2 . . 3 1 2 Demolisher 2 | . . . . . . . . . . . . . . . . . . . . 2 . . Hunter 18 | . . . . . 2 . . . . . . 4 1 . . . . . . 6 . 5 Programmer 38 | . . . . . . 2 4 . 1 . . 1 . . 1 2 . . 1 13 . 13 Behemoth 4 | . . . . . . . . . 1 . . . 2 . . . . . . . 1 . Cetus Guard 2 | . . . . . . . . . . . . . . 2 . . . . . . . . Decomposer 1 | . . . . . . . . . . . . . . . . . . . 1 . . . Thug 1 | . . . . . . . . . . . . . . 1 . . . . . . . . Best Kill Streak 12 | . 3 1 . . 2 5 4 . 2 . 10 4 3 2 2 7 12 . 6 5 1 11 Combat Bots Only 12 | . 3 1 . . 2 3 4 . 2 . 10 4 2 2 2 7 12 . 5 5 1 8 Max Kills in Single Turn 4 | . 1 1 . . 1 4 2 . 1 . 2 2 1 1 1 2 2 . 2 2 1 2 Gunslinging 1 | . . . . . . . . . . . . . . . . . . . . 1 . . Exploded 2 | . . 1 . . . 1 . . 1 . 1 2 1 1 . 1 2 . 2 . . 1 Melee 1 | . . . . . . . . . . . . 1 1 . . . . . . . . . Uniques/NPCs Destroyed . | . . . . . . . . . . . . . . . . . . . . . . . Combat | -11 -10 -10 -10 -9 -8 -7 -6 -6 -6 -6 -5 -5 -5 -5 -4 -4 -4 -4 -3 -3 -2 -1 -------- Run | Scr Mat Min Exi Min Mat Fac Fac Low Low Dat Pro Fac Ext Cet Fac Upp Upp Zhi Pro Res Res Acc Damage Taken 26381 | . 592 173 . . 1238 893 566 . 621 . 854 2485 2498 599 147 1281 626 . 453 3796 1025 8534 Core 3731 | . 135 53 . . 146 76 51 . 34 . 116 381 419 91 23 98 . . 39 263 190 1616 Absorbed by Shields 71 | . . . . . . . . . . . . . . 71 . . . . . . . . Reduced by Siege Mode 63 | . . . . . . . . . . . . . . . . . . . . . 63 . Core Remaining (%) 68 | 100 . . . 24 73 89 . . . . 76 . . 10 . . . . 86 70 86 . Volleys Fired 532 | . 36 4 . . 63 29 38 . 8 1 6 81 21 26 7 19 18 . 12 80 11 72 Largest 5 | . 2 2 . . 2 2 3 . 2 1 1 3 3 3 3 3 2 . 2 4 4 5 Hottest 477 | . 90 56 . . 84 98 145 . 116 50 36 227 119 190 190 190 124 . 124 336 383 477 Shots Fired 1400 | . 72 8 . . 125 58 114 . 39 1 63 147 33 34 21 58 51 . 18 308 44 206 Gun 1011 | . 72 4 . . 125 43 75 . 30 . 57 55 16 29 21 55 20 . . 239 31 139 Cannon 282 | . . . . . . 15 39 . . . . 81 . . . . 15 . 6 69 13 44 Launcher 106 | . . 4 . . . . . . 9 . 6 11 17 5 . 3 16 . 12 . . 23 Special 1 | . . . . . . . . . . 1 . . . . . . . . . . . . Kinetic 643 | . 3 4 . . 102 44 76 . 24 . 57 89 16 9 7 38 20 . . 126 9 19 Thermal 390 | . 24 . . . 17 14 38 . 6 . . 33 . 20 14 17 . . . 107 13 87 Explosive 106 | . . 4 . . . . . . 9 . 6 11 17 5 . 3 16 . 12 . . 23 Electromagnetic 260 | . 45 . . . 6 . . . . . . 14 . . . . 15 . 6 75 22 77 Robot Hit Streak 55 | . 9 3 . . 16 16 26 . 13 13 55 12 7 18 25 14 16 . 15 39 39 49 Robot Miss Streak 4 | . 2 2 . . 4 3 1 . 1 . 1 4 3 1 2 1 1 . 1 3 1 4 Penetration Max 2 | . . . . . . 1 1 . . . 1 1 1 1 . 1 . . . 1 . 2 Secondary Targets 11 | . 2 . . . . 2 . . . . . . . . . 2 . . . 5 . . Max Gunslinging Chain 1 | . 1 . . . . 1 . . . . . . . . . 1 . . . 1 . . Autonomous 124 | . . . . . . . . . 24 . 57 . . . . 22 21 . . . . . Shots Hit Robots 1085 | . 54 6 . . 106 47 93 . 29 1 57 105 30 27 15 49 45 . 11 211 42 157 Core Hits 582 | . 23 5 . . 42 28 34 . 16 . 40 54 26 25 6 29 33 . 21 88 9 103 Critical Hits 37 | . . . . . 1 7 7 . . . . 2 2 1 1 4 . . 1 9 . 2 Critical Kills 15 | . . . . . . 3 2 . . . . 1 1 1 1 2 . . . 4 . . Critical Parts Destroyed 22 | . . . . . 1 4 5 . . . . 1 1 . . 2 . . 1 5 . 2 Melee Attacks 37 | . . . . . . . . . . . . 16 20 . 1 . . . . . . . Impact . | . . . . . . . . . . . . . . . . . . . . . . . Slashing 37 | . . . . . . . . . . . . 16 20 . 1 . . . . . . . Piercing . | . . . . . . . . . . . . . . . . . . . . . . . Sneak Attacks 1 | . . . . . . . . . . . . . 1 . . . . . . . . . Combat Hostiles . | . . . . . . . . . . . . . . . . . . . . . . . Follow-up Attacks . | . . . . . . . . . . . . . . . . . . . . . . . Damage Inflicted 37223 | . 942 155 . . 1586 1463 2271 . 985 . 2196 3207 1814 1093 450 1715 2676 . 1697 6093 1159 7721 Guns 17699 | . 730 24 . . 1555 816 1403 . 767 . 1496 881 345 659 450 1332 521 . . 3815 509 2396 Cannons 7223 | . . . . . . 326 868 . . . . 1214 . . . . 484 . 243 2278 571 1239 Explosions 11211 | . 212 131 . . 31 321 . . 218 . 700 642 876 434 . 383 1671 . 1454 . 79 4059 Melee 1036 | . . . . . . . . . . . . 459 577 . . . . . . . . . Ramming 54 | . . . . . . . . . . . . 11 16 . . . . . . . . 27 Kinetic 12071 | . 35 24 . . 1193 926 1614 . 645 . 1496 1331 345 220 118 972 521 . . 2035 193 403 Thermal 9714 | . 441 . . . 307 216 657 . 122 . . 674 . 439 332 360 . . . 3135 650 2381 Explosive 10662 | . . 131 . . . 321 . . 218 . 700 495 876 434 . 383 1671 . 1454 . . 3979 Electromagnetic 3686 | . 466 . . . 86 . . . . . . 237 . . . . 484 . 243 923 316 931 Impact . | . . . . . . . . . . . . . . . . . . . . . . . Slashing 1036 | . . . . . . . . . . . . 459 577 . . . . . . . . . Piercing . | . . . . . . . . . . . . . . . . . . . . . . . Highest Corruption 37 | . . . . . 5 . 6 6 7 7 9 11 13 14 2 3 3 3 5 18 . 37 Average Corruption 7 | . . . . . 4 . 4 6 6 7 7 10 12 13 1 2 3 3 4 9 . 20 Corruption Purged . | . . . . . . . . . . . . . . . . . . . . . . . Effects 422 | . . . . . 30 . 33 5 27 7 19 23 47 37 2 13 22 3 12 69 . 73 Message Errors 94 | . . . . . 6 . 9 2 10 2 4 4 12 5 . 3 8 1 4 16 . 8 Matter Fused 80 | . . . . . 6 . 6 2 8 . 4 5 7 10 . 4 6 2 4 10 . 6 Heat Flow Errors 27 | . . . . . 2 . 3 . 2 2 1 2 4 . 2 2 4 . 1 1 . 1 Energy Discharges 48 | . . . . . 7 . 5 . 3 . 7 2 4 5 . 2 1 . . 8 . 4 Parts Rejected 3 | . . . . . . . . . . . . . 1 . . . . . . 2 . . Data Loss (minor) 34 | . . . . . 2 . 4 . 1 3 2 1 4 3 . 1 1 . 2 6 . 4 Data Loss (major) 13 | . . . . . 2 . 2 1 2 . 1 . 1 1 . . . . . . . 3 Misfires 6 | . . . . . . . 1 . 1 . . 1 . 1 . . . . 1 1 . . Alerts 5 | . . . . . . . . . . . . . 2 1 . . . . . . . 2 Misdirections 17 | . . . . . . . . . . . . 2 2 6 . . . . . . . 7 Targeting Errors 76 | . . . . . 4 . 2 . . . . 5 7 4 . 1 1 . . 21 . 31 Weapon Failures 19 | . . . . . 1 . 1 . . . . 1 3 1 . . 1 . . 4 . 7 Overload Shots . | . . . . . . . . . . . . . . . . . . . . . . . Overflow Damage 773 | . . . . . . . 7 . . . 32 141 84 . . 25 11 . 84 51 . 338 Projectiles 172 | . . . . . . . 7 . . . . 15 . . . . . . . 51 . 99 Explosions 402 | . . . . . . . . . . . 32 11 . . . 25 11 . 84 . . 239 Melee 199 | . . . . . . . . . . . . 115 84 . . . . . . . . . Knockbacks 15 | . . . . . . 2 7 . . . . 6 . . . . . . . . . . Impact . | . . . . . . . . . . . . . . . . . . . . . . . Kinetic 15 | . . . . . . 2 7 . . . . 6 . . . . . . . . . . Secondary . | . . . . . . . . . . . . . . . . . . . . . . . Self-Inflicted Damage 403 | . 30 56 . . . 53 . . 76 . 7 4 7 . . . . . 21 . . 149 Shots 13 | . 1 3 . . . 1 . . 2 . 1 . . . . . . . 1 . . 4 Rammed 10 | . . . . . . . . . . . . 3 3 . . . . . . . . 4 Targets Rammed 10 | . . . . . . . . . . . . 3 3 . . . . . . . . 4 Kicked . | . . . . . . . . . . . . . . . . . . . . . . . Crushed . | . . . . . . . . . . . . . . . . . . . . . . . Highest Temperature 497 | . 388 9 . . 249 66 246 . 157 184 78 240 274 288 389 370 130 . 159 282 404 497 Average Temperature 102 | . 143 7 . . 42 17 35 . 26 92 49 80 86 131 158 155 36 . 51 94 190 168 Received Heat Transfer 2898 | . 312 36 . . 441 156 150 . 66 . 117 216 327 75 9 180 177 . 81 114 . 441 Effects 15 | . 2 . . . . . . . . . . . . 1 . 2 . . . . 2 8 Shutdowns 6 | . . . . . . . . . . . . . . . . 1 . . . . . 5 Energy Bleed 5 | . 1 . . . . . . . . . . . . 1 . 1 . . . . . 2 Interference 2 | . . . . . . . . . . . . . . . . . . . . . 2 . Short Circuit 1 | . 1 . . . . . . . . . . . . . . . . . . . . . Damage (minor) 1 | . . . . . . . . . . . . . . . . . . . . . . 1 Siege Activations 2 | . . . . . . . . . . . . . . . . . . . . . 2 . Total Turns 29 | . . . . . . . . . . . . . . . . . . . . . 29 . Longest Duration 24 | . . . . . . . . . . . . . . . . . . . . . 24 . Robots Corrupted 3 | . . . . . . . . . . . . . . . . . . . . 1 1 1 Combat Hostiles 3 | . . . . . . . . . . . . . . . . . . . . 1 1 1 Parts Fried 12 | . . . . . . . . . . . . 1 . . . . . . 1 2 1 7 Impact Corruptions . | . . . . . . . . . . . . . . . . . . . . . . . Robots Melted 1 | . . . . . . . . . . . . . . . . . . . . . . 1 Combat Hostiles 1 | . . . . . . . . . . . . . . . . . . . . . . 1 Parts Melted 18 | . 2 . . . . . 1 . 1 . . 2 . . . 2 . . . 2 . 8 Heat Transferred 11877 | . 916 . . . 592 407 1295 . 185 . . 1057 . 703 444 481 . . . 3107 531 2159 Parts Sabotaged . | . . . . . . . . . . . . . . . . . . . . . . . Parts Stolen . | . . . . . . . . . . . . . . . . . . . . . . . Parts Stripped . | . . . . . . . . . . . . . . . . . . . . . . . Power Chain Reactions 6 | . 3 . . . 1 . . . . . . . . . . . . . . . 1 1 Missiles Intercepted 3 | . . . . . . . . . . . . . . . . . . . . 3 . . Alert | -11 -10 -10 -10 -9 -8 -7 -6 -6 -6 -6 -5 -5 -5 -5 -4 -4 -4 -4 -3 -3 -2 -1 ------- Run | Scr Mat Min Exi Min Mat Fac Fac Low Low Dat Pro Fac Ext Cet Fac Upp Upp Zhi Pro Res Res Acc Peak Influence 1017 | . 176 110 . . 210 223 163 . . . . 501 368 555 448 . . . . 432 311 1017 Initial 299 | . . 19 . . . 12 24 . . . . 103 230 . 299 . . . . 30 212 66 Average 162 | . 33 53 . . 62 55 70 . . . . 278 189 316 314 . . . . 249 256 512 Maximum Alert Level 3 | . . . . . 1 1 . . . . . 2 1 2 2 . . . . 2 1 3 Low Security (%) 67 | 100 100 100 . 100 98 94 100 . . . . 27 53 36 . . . . . 36 . 30 Level 1 23 | . . . . . 1 5 . . . . . 56 46 24 90 . . . . 57 100 5 Level 2 5 | . . . . . . . . . . . . 16 . 39 9 . . . . 5 . 14 Level 3 2 | . . . . . . . . . . . . . . . . . . . . . . 49 Level 4 . | . . . . . . . . . . . . . . . . . . . . . . . Level 5 . | . . . . . . . . . . . . . . . . . . . . . . . High Security . | . . . . . . . . . . . . . . . . . . . . . . . Max Security . | . . . . . . . . . . . . . . . . . . . . . . . Squads Dispatched 38 | . 1 . . 1 1 4 3 . . . . 7 . 1 1 . . . . 9 . 10 Investigation 2 | . . . . . . . . . . . . 1 . 1 . . . . . . . . Extermination 15 | . . . . . . 2 3 . . . . 2 . . 1 . . . . 4 . 3 Reinforcement 11 | . 1 . . . 1 1 . . . . . 4 . . . . . . . 2 . 2 Assault 4 | . . . . 1 . 1 . . . . . . . . . . . . . . . 2 Garrison 6 | . . . . . . . . . . . . . . . . . . . . 3 . 3 Intercept . | . . . . . . . . . . . . . . . . . . . . . . . Construction Impeded . | . . . . . . . . . . . . . . . . . . . . . . . Haulers Reinforced 4 | . . . . . . . . . . . . 1 . . . . . . . 1 . 2 Stealth | -11 -10 -10 -10 -9 -8 -7 -6 -6 -6 -6 -5 -5 -5 -5 -4 -4 -4 -4 -3 -3 -2 -1 --------- Run | Scr Mat Min Exi Min Mat Fac Fac Low Low Dat Pro Fac Ext Cet Fac Upp Upp Zhi Pro Res Res Acc Distress Signals 26 | . 3 . . . 5 1 . . . . . 2 1 2 . . . . . . . 12 Communications Jammed . | . . . . . . . . . . . . . . . . . . . . . . . Distress Signals . | . . . . . . . . . . . . . . . . . . . . . . . Times Spotted 336 | . 20 4 . . 26 16 18 . 6 . 17 28 14 24 8 14 14 . 11 44 4 68 Peak Tracking Total 16 | . 5 2 . . 5 4 4 . 3 . 6 5 6 5 4 6 8 . 5 4 2 16 Tactical Retreats 25 | . 1 . . . 3 1 3 . 1 . 1 2 3 . 2 1 . . . 1 . 6 Traps | -11 -10 -10 -10 -9 -8 -7 -6 -6 -6 -6 -5 -5 -5 -5 -4 -4 -4 -4 -3 -3 -2 -1 ------- Run | Scr Mat Min Exi Min Mat Fac Fac Low Low Dat Pro Fac Ext Cet Fac Upp Upp Zhi Pro Res Res Acc Traps Triggered 8 | . . . . . 3 1 . . . . . . 3 . . . . . . 1 . . Indirectly . | . . . . . . . . . . . . . . . . . . . . . . . Trap Hack Attempts . | . . . . . . . . . . . . . . . . . . . . . . . Triggered . | . . . . . . . . . . . . . . . . . . . . . . . Disarmed . | . . . . . . . . . . . . . . . . . . . . . . . Reprogrammed . | . . . . . . . . . . . . . . . . . . . . . . . Reused . | . . . . . . . . . . . . . . . . . . . . . . . Traps Extracted . | . . . . . . . . . . . . . . . . . . . . . . . Installed . | . . . . . . . . . . . . . . . . . . . . . . . Triggered 2 | . . . . . . . . . . . . . . . . . . . 2 . . . Machines | -11 -10 -10 -10 -9 -8 -7 -6 -6 -6 -6 -5 -5 -5 -5 -4 -4 -4 -4 -3 -3 -2 -1 ---------- Run | Scr Mat Min Exi Min Mat Fac Fac Low Low Dat Pro Fac Ext Cet Fac Upp Upp Zhi Pro Res Res Acc Machines Disabled 29 | . . 2 . . 1 3 . . . . . 12 2 3 . 3 . . . 1 . 2 Max in Single Turn 4 | . . 1 . . 1 3 . . . . . 4 1 1 . 1 . . . 1 . 1 Garrison Access 3 | . . . . . 1 . 1 . . . . 1 . . . . . . . . . . Machines Sabotaged . | . . . . . . . . . . . . . . . . . . . . . . . Garrisons Compromised . | . . . . . . . . . . . . . . . . . . . . . . . Overloaded Fab Kills . | . . . . . . . . . . . . . . . . . . . . . . . Fab Network Shutdowns . | . . . . . . . . . . . . . . . . . . . . . . . Hacking | -11 -10 -10 -10 -9 -8 -7 -6 -6 -6 -6 -5 -5 -5 -5 -4 -4 -4 -4 -3 -3 -2 -1 --------- Run | Scr Mat Min Exi Min Mat Fac Fac Low Low Dat Pro Fac Ext Cet Fac Upp Upp Zhi Pro Res Res Acc Machines Accessed 61 | . 10 . 1 . 6 4 11 . . 3 . 5 4 3 4 . 1 6 . 2 . 1 Terminals 29 | . 7 . . . 3 2 6 . . . . 2 2 3 1 . . . . 2 . 1 Fabricators 6 | . . . . . . 2 2 . . . . . . . 2 . . . . . . . Repair Stations 5 | . 1 . . . 1 . 1 . . . . 1 1 . . . . . . . . . Recycling Units 6 | . 2 . . . 1 . 1 . . . . . 1 . 1 . . . . . . . Scanalyzers 1 | . . . . . . . . . . . . 1 . . . . . . . . . . Garrison Access 3 | . . . . . 1 . 1 . . . . 1 . . . . . . . . . . Total Hacks 164 | . 34 . 1 . 18 5 17 . . 25 . 17 7 10 6 . 1 19 . 3 . 1 Successful 116 | . 22 . 1 . 11 3 10 . . 25 . 12 6 4 1 . 1 19 . . . 1 Failed 48 | . 12 . . . 7 2 7 . . . . 5 1 6 5 . . . . 3 . . Catastrophic 12 | . 1 . . . 1 . 3 . . . . 2 . 2 1 . . . . 2 . . Database Lockouts . | . . . . . . . . . . . . . . . . . . . . . . . Manual 39 | . 16 . 1 . 10 3 2 . . . . 2 2 2 1 . . . . . . . Terminals 69 | . 22 . . . 9 3 9 . . . . 7 4 10 1 . . . . 3 . 1 Fabricators 7 | . . . . . . 2 3 . . . . . . . 2 . . . . . . . Repair Stations 19 | . 6 . . . 6 . 2 . . . . 3 2 . . . . . . . . . Recycling Units 13 | . 6 . . . 1 . 2 . . . . . 1 . 3 . . . . . . . Scanalyzers 6 | . . . . . . . . . . . . 6 . . . . . . . . . . Garrison Access 4 | . . . . . 2 . 1 . . . . 1 . . . . . . . . . . Terminal Hacks 65 | . 3 . 1 . 2 . 3 . . 25 . 2 4 4 . . 1 19 . . . 1 Record 21 | . . . . . . . 1 . . 6 . 2 1 4 . . . 7 . . . . Part Schematic 14 | . . . . . . . . . . 10 . . . . . . . 4 . . . . Robot Schematic 6 | . . . . . . . . . . 6 . . . . . . . . . . . . Robot Analysis 4 | . . . . . . . . . . . . . . . . . . 4 . . . . Prototype ID Bank 9 | . 2 . . . . . . . . 3 . . . . . . . 4 . . . . Open Door 1 | . . . . . . . . . . . . . . . . . 1 . . . . . Alert Level 7 | . 1 . . . 2 . 1 . . . . . 2 . . . . . . . . 1 Unreport Threat 1 | . . . . . . . . . . . . . 1 . . . . . . . . . Zone Layout 1 | . . . . . . . 1 . . . . . . . . . . . . . . . EX-Prototype ID Bank 1 | . . . 1 . . . . . . . . . . . . . . . . . . . Fabricator Hacks 3 | . . . . . . 2 1 . . . . . . . . . . . . . . . Network Status 1 | . . . . . . 1 . . . . . . . . . . . . . . . . Build 2 | . . . . . . 1 1 . . . . . . . . . . . . . . . Repair Station Hacks 16 | . 6 . . . 4 . 2 . . . . 2 2 . . . . . . . . . Scan Component 8 | . 3 . . . 2 . 1 . . . . 1 1 . . . . . . . . . Repair 8 | . 3 . . . 2 . 1 . . . . 1 1 . . . . . . . . . Recycling Unit Hacks 10 | . 6 . . . 1 . 2 . . . . . . . 1 . . . . . . . Process 2 | . 1 . . . . . 1 . . . . . . . . . . . . . . . Report Inventory 5 | . 3 . . . 1 . . . . . . . . . 1 . . . . . . . Retrieve Matter 3 | . 2 . . . . . 1 . . . . . . . . . . . . . . . Scanalyzer 6 | . . . . . . . . . . . . 6 . . . . . . . . . . Insert Component 3 | . . . . . . . . . . . . 3 . . . . . . . . . . Analyze 3 | . . . . . . . . . . . . 3 . . . . . . . . . . Garrison Access Hacks 3 | . . . . . 1 . 1 . . . . 1 . . . . . . . . . . Seal Access 3 | . . . . . 1 . 1 . . . . 1 . . . . . . . . . . Unauthorized Hacks 13 | . 7 . . . 3 1 1 . . . . 1 . . . . . . . . . . Terminals 13 | . 7 . . . 3 1 1 . . . . 1 . . . . . . . . . . Botnet 13 | . 7 . . . 3 1 1 . . . . 1 . . . . . . . . . . Fabricators . | . . . . . . . . . . . . . . . . . . . . . . . Repair Stations . | . . . . . . . . . . . . . . . . . . . . . . . Recycling Units . | . . . . . . . . . . . . . . . . . . . . . . . Scanalyzers . | . . . . . . . . . . . . . . . . . . . . . . . Garrison Access . | . . . . . . . . . . . . . . . . . . . . . . . Data Cores Recovered . | . . . . . . . . . . . . . . . . . . . . . . . Used . | . . . . . . . . . . . . . . . . . . . . . . . Hacking Detections 38 | . 9 . . . 1 2 9 . . . . 4 3 4 4 . . . . 2 . . Full Trace Events 3 | . 1 . . . . . . . . . . 1 . 1 . . . . . . . . Feedback Events 1 | . . . . . . . . . . . . . . 1 . . . . . . . . Corruption 1 | . . . . . . . . . . . . . . 1 . . . . . . . . Feedback Blocked . | . . . . . . . . . . . . . . . . . . . . . . . Robot Schematics Acquired 6 | . . . . . . . . . . 6 . . . . . . . . . . . . Robots Built . | . . . . . . . . . . . . . . . . . . . . . . . Matter . | . . . . . . . . . . . . . . . . . . . . . . . Time . | . . . . . . . . . . . . . . . . . . . . . . . Total Robot Build Rating . | . . . . . . . . . . . . . . . . . . . . . . . Part Schematics Acquired 17 | . . . . . . . . . . 10 . 3 . . . . . 4 . . . . Parts Built 2 | . . . . . . 1 1 . . . . . . . . . . . . . . . Matter 468 | . . . . . . 212 256 . . . . . . . . . . . . . . . Time 95 | . . . . . . 53 42 . . . . . . . . . . . . . . . Total Part Build Rating 14 | . . . . . . 6 8 . . . . . . . . . . . . . . . Parts Repaired 8 | . 3 . . . 2 . 1 . . . . 1 1 . . . . . . . . . Time 239 | . 90 . . . 64 . 19 . . . . 44 22 . . . . . . . . . Parts Recycled . | . . . . . . . . . . . . . . . . . . . . . . . Recycled Matter 15 | . 8 . . . . . 7 . . . . . . . . . . . . . . . Retrieved Matter 8 | . 8 . . . . . . . . . . . . . . . . . . . . . Retrieved Components . | . . . . . . . . . . . . . . . . . . . . . . . Parts Scanalyzed 3 | . . . . . . . . . . . . 3 . . . . . . . . . . Part Schematics Acquired 3 | . . . . . . . . . . . . 3 . . . . . . . . . . Parts Damaged . | . . . . . . . . . . . . . . . . . . . . . . . Bothacking | -11 -10 -10 -10 -9 -8 -7 -6 -6 -6 -6 -5 -5 -5 -5 -4 -4 -4 -4 -3 -3 -2 -1 ------------ Run | Scr Mat Min Exi Min Mat Fac Fac Low Low Dat Pro Fac Ext Cet Fac Upp Upp Zhi Pro Res Res Acc Used RIF Installer . | . . . . . . . . . . . . . . . . . . . . . . . Robots Hacked 1 | . . . . . . . . . . 1 . . . . . . . . . . . . Non-combat . | . . . . . . . . . . . . . . . . . . . . . . . Combat 1 | . . . . . . . . . . 1 . . . . . . . . . . . . Robot Hacks Applied 1 | . . . . . . . . . . 1 . . . . . . . . . . . . parse_system 1 | . . . . . . . . . . 1 . . . . . . . . . . . . Relay Couplers Released . | . . . . . . . . . . . . . . . . . . . . . . . Robots Rewired . | . . . . . . . . . . . . . . . . . . . . . . . Allies Hacked . | . . . . . . . . . . . . . . . . . . . . . . . Hacks Repelled . | . . . . . . . . . . . . . . . . . . . . . . . Allies | -11 -10 -10 -10 -9 -8 -7 -6 -6 -6 -6 -5 -5 -5 -5 -4 -4 -4 -4 -3 -3 -2 -1 -------- Run | Scr Mat Min Exi Min Mat Fac Fac Low Low Dat Pro Fac Ext Cet Fac Upp Upp Zhi Pro Res Res Acc Total Allies 11 | . . 2 . 1 . . . . . . 1 . 6 1 . . . . . . . . Largest Group 4 | . . 2 1 1 1 . . . . . 1 . 3 4 . . . . . . . . Highest-Rated Group 295 | . . 43 31 31 31 . . . . . 94 . 218 295 . . . . . . . . Highest-Rated Ally 156 | . . 31 31 31 31 . . . . . 94 . 156 156 . . . . . . . . Total Orders 1 | . . . . . . . . . . . . . . 1 . . . . . . . . FOLLOW 1 | . . . . . . . . . . . . . . 1 . . . . . . . . Ally Attacks 130 | . . 9 . . 2 . . . . . 4 . 21 94 . . . . . . . . Total Damage 3437 | . . 149 . . 21 . . . . . 157 . 316 2794 . . . . . . . . Kills 24 | . . 3 . . . . . . . . . . 2 19 . . . . . . . . Allies Corrupted . | . . . . . . . . . . . . . . . . . . . . . . . Allies Melted . | . . . . . . . . . . . . . . . . . . . . . . . Intel | -11 -10 -10 -10 -9 -8 -7 -6 -6 -6 -6 -5 -5 -5 -5 -4 -4 -4 -4 -3 -3 -2 -1 ------- Run | Scr Mat Min Exi Min Mat Fac Fac Low Low Dat Pro Fac Ext Cet Fac Upp Upp Zhi Pro Res Res Acc Robot Analysis Total 4 | . . . . . . . . . . . . . . . . . . 4 . . . . Derelict Logs Recovered 6 | . . 1 . 1 . . . . 1 . 1 . . . . 1 1 . . . . . Drone Launches . | . . . . . . . . . . . . . . . . . . . . . . . Drone Recoveries . | . . . . . . . . . . . . . . . . . . . . . . . Exploration | -11 -10 -10 -10 -9 -8 -7 -6 -6 -6 -6 -5 -5 -5 -5 -4 -4 -4 -4 -3 -3 -2 -1 ------------- Run | Scr Mat Min Exi Min Mat Fac Fac Low Low Dat Pro Fac Ext Cet Fac Upp Upp Zhi Pro Res Res Acc Turns Passed 19119 | 70 1849 486 440 390 1756 1602 1612 286 849 145 598 1349 857 695 518 861 855 331 560 1746 400 864 Spaces Moved 10069 | 50 879 293 273 239 774 811 782 171 495 85 345 801 551 372 277 501 491 198 326 789 186 380 Core 84 | 6 . . . . . . . . . . . . . . . . . . . . . 78 Treads 8799 | . 875 293 273 239 774 811 782 171 495 85 345 151 63 372 277 501 491 198 326 789 186 302 Legs 49 | 44 4 . . . . . . . . . . . 1 . . . . . . . . . Wheels 1137 | . . . . . . . . . . . . 650 487 . . . . . . . . . Hover . | . . . . . . . . . . . . . . . . . . . . . . . Flight . | . . . . . . . . . . . . . . . . . . . . . . . Fastest Speed 50 | 50 120 160 160 160 160 170 167 167 167 167 165 100 86 160 160 160 160 160 160 160 165 50 Average Speed 157 | 111 169 160 160 160 165 170 168 167 167 167 166 118 120 160 160 160 160 160 160 164 174 138 Slowest Speed 240 | 120 180 160 160 160 170 170 170 167 167 167 167 185 240 160 160 160 160 160 160 200 190 180 Overloaded Moves . | . . . . . . . . . . . . . . . . . . . . . . . Propulsion Burnouts . | . . . . . . . . . . . . . . . . . . . . . . . Robots Hopped . | . . . . . . . . . . . . . . . . . . . . . . . Cave-ins Triggered 1 | . . . . . . . . . . . 1 . . . . . . . . . . . Teleports 1 | . . . . . . . . . . . . . . . . . . . . 1 . . Exploration Rate (%) 43 | 5 98 43 67 56 46 24 14 35 52 69 52 19 64 70 8 69 64 62 52 19 5 7 Regions Visited 22 Branch Regions 13 Pre-discovered Areas 6 | . . 1 . . . . . . . 1 . . . . . 1 . 3 . . . . Known Exits Taken 16 | . . . . 1 . . 1 1 1 1 1 1 1 1 1 1 1 1 1 1 1 . Unknown Exits Taken 6 | 1 1 1 1 . 1 1 . . . . . . . . . . . . . . . . Scrap Searched 11 | . . . . 1 . . . 2 1 . 3 . . . . 2 2 . . . . . Spaces Dug 43 | . . . . . . . . . 14 . . 27 . . 1 . . . . 1 . . Terrain Destroyed 948 | . 7 48 . . . 15 9 . 83 . 69 96 73 71 6 23 72 . 175 33 12 156 Melee 4 | . . . . . . . . . . . . 3 . . 1 . . . . . . . Projectile 134 | . . . . . . 2 9 . 5 . 29 13 2 . 5 12 10 . . 33 . 14 AOE 810 | . 7 48 . . . 13 . . 78 . 40 80 71 71 . 11 62 . 175 . 12 142 Terrain Rammed . | . . . . . . . . . . . . . . . . . . . . . . . Walls Destroyed . | . . . . . . . . . . . . . . . . . . . . . . . Machines Disabled . | . . . . . . . . . . . . . . . . . . . . . . . Actions | -11 -10 -10 -10 -9 -8 -7 -6 -6 -6 -6 -5 -5 -5 -5 -4 -4 -4 -4 -3 -3 -2 -1 --------- Run | Scr Mat Min Exi Min Mat Fac Fac Low Low Dat Pro Fac Ext Cet Fac Upp Upp Zhi Pro Res Res Acc Total 12344 | 61 1179 305 279 247 1135 996 1013 172 508 87 365 1064 680 445 335 528 526 214 349 1041 236 579 Wait 946 | . 179 2 . 7 226 101 147 . . . . 78 31 7 33 . . . . 78 12 45 Move 10047 | 49 878 292 272 238 773 810 781 170 494 84 344 800 550 371 276 500 490 197 325 788 185 380 Hop . | . . . . . . . . . . . . . . . . . . . . . . . Pick Up 172 | 6 30 2 2 1 14 12 14 . . . 5 21 8 7 3 2 2 4 4 18 6 11 Fast Attach 138 | 6 9 1 . . 14 8 4 . 1 . 2 12 10 9 4 2 4 4 1 25 9 13 Attach 85 | . 3 . . . 5 5 3 . 1 . 1 14 7 1 2 3 2 2 1 13 2 20 Detach 49 | . 5 . . . 3 3 1 . . . . 5 4 5 . 1 . 1 1 5 6 9 Swap 77 | . 10 1 1 . 11 6 9 1 1 2 1 8 4 4 3 1 3 . . 7 . 4 Drop 231 | . 29 3 4 1 26 22 16 1 3 . 6 26 5 15 6 . 6 6 5 27 5 19 Fire 532 | . 36 4 . . 63 29 38 . 8 1 6 81 21 26 7 19 18 . 12 80 11 72 Melee 37 | . . . . . . . . . . . . 16 20 . 1 . . . . . . . Ram 12 | . . . . . . . . . . . . 3 4 . . . . . . . . 5 Kick . | . . . . . . . . . . . . . . . . . . . . . . . Crush 1 | . . . . . . . . . . . . . . . . . . . . . . 1 Escape Stasis 16 | . . . . . . . . . . . . . 16 . . . . . . . . . Rewire 1 | . . . . . . . . . . . . . . . . . 1 . . . . . Trap . | . . . . . . . . . . . . . . . . . . . . . . . Miscellaneous . | . . . . . . . . . . . . . . . . . . . . . . . Route ------- -11/Scrapyard -10/Materials (discovered 5 exits: [*Mat x3] / [*Min x2]) -10/Mines -10/Exiles (discovered 2 exits: [*Min x2]) -9/Mines -8/Materials -7/Factory -6/Factory (discovered 3 exits: *Fac x2 / *Low) -6/Lower Caves -6/Lower Caves -6/Data Miner -5/Proximity Caves -5/Factory (discovered 3 exits: *Fac x2 / *Ext) -5/Extension (discovered 2 exits: *Fac / *Cet) -5/Cetus (discovered 2 exits: *Fac / [*Arc]) -4/Factory -4/Upper Caves -4/Upper Caves (discovered 2 exits: *Res / *Zhi) -4/Zhirov -3/Proximity Caves -3/Research -2/Research -1/Access History --------- Turn | Location | Event 14 | -11/Scrapyard | Discovered new exit (range 14) 71 | -11/Scrapyard | Entered Materials 314 | -10/Materials | Build established: Mutant 760 | -10/Materials | Discovered new exit (range 10) 860 | -10/Materials | Discovered new exit (range 10) 1119 | -10/Materials | Repaired Lgt. Treads 1147 | -10/Materials | Repaired Lgt. Treads 1186 | -10/Materials | Repaired Lgt. Nuclear Core 1256 | -10/Materials | Discovered new exit (range 16) 1612 | -10/Materials | Discovered new exit (range 14) 1859 | -10/Materials | Discovered new exit (range 9) 1881 | -10/Materials | Core integrity fell below 50% 1920 | -10/Materials | Entered Mines 2141 | -10/Mines | Learned location of Zion (-7) 2166 | -10/Mines | Deemed a non-threat by the Exiles lab entrance 2400 | -10/Mines | Discovered new exit (range 5) 2406 | -10/Mines | Entered Exiles 2406 | -10/Exiles | Accompanied by 1 ally 2427 | -10/Exiles | Discovered new exit (range 15) 2436 | -10/Exiles | Led the pair of lost Derelicts to a safe place 2446 | -10/Exiles | Met 8R-AWN 2482 | -10/Exiles | Met EX-HEX 2621 | -10/Exiles | Met EX-BIN 2640 | -10/Exiles | Aligned with FarCom system 2642 | -10/Exiles | Given EX-Vault access code 2679 | -10/Exiles | Opened EX-Vault 2688 | -10/Exiles | Found AWS/Gauss 2719 | -10/Exiles | Warned to stay clear of 0b10 Research branches 2766 | -10/Exiles | Met EX-DEC 2828 | -10/Exiles | Discovered new exit (range 14) 2846 | -10/Exiles | Left Exiles lab with AWS/Gauss 2846 | -10/Exiles | Entered Mines 3042 | -9/Mines | Identified exit to Materials 3214 | -9/Mines | Met a Derelict testing a Signal Generator 3233 | -9/Mines | Found Signal Generator 3236 | -9/Mines | Entered Materials 3236 | -8/Materials | Accompanied by 1 ally 3236 | -8/Materials | Evolved 4 slots: Propulsion x2, Utility x2 3290 | -8/Materials | Repaired Imp. Treads 3323 | -8/Materials | Repaired Imp. Treads 4517 | -8/Materials | Build established: Skirmisher 4694 | -8/Materials | Discovered new exit (range 15) 4992 | -8/Materials | Entered Factory 4992 | -7/Factory | Evolved 2 slots: Utility x2 6087 | -7/Factory | Fabricated Imp. Shock Absorption System (x1) 6589 | -7/Factory | Discovered new exit (range 4) 6594 | -7/Factory | Entered another Factory area 6594 | -6/Factory | Evolved 2 slots: Utility x1, Weapon x1 6641 | -6/Factory | Repaired Arm. Treads 6876 | -6/Factory | Discovered new exit (range 11) 6895 | -6/Factory | Identified exit to Factory 7407 | -6/Factory | Discovered exit to Factory (range 16) 8005 | -6/Factory | Fabricated Adv. Remote Datajack (x1) 8117 | -6/Factory | Discovered new exit (range 15) 8141 | -6/Factory | Identified exit to Lower Caves 8206 | -6/Factory | Entered Lower Caves 8356 | -6/Lower Caves | Encountered a Warlord checkpoint 8438 | -6/Lower Caves | Discovered new exit (range 24) 8488 | -6/Lower Caves | Build established: Mutant 8490 | -6/Lower Caves | Identified exit to Lower Caves 8492 | -6/Lower Caves | Entered another Lower Caves area 8683 | -6/Lower Caves | Spotted B-75 Beast 8761 | -6/Lower Caves | Attracted the attention of an 0b10 checkpoint 8853 | -6/Lower Caves | Destroyed B-75 Beast 9118 | -6/Lower Caves | Build established: Gunner 9211 | -6/Lower Caves | Learned location of 1 exit from Factory 9334 | -6/Lower Caves | Discovered new exit (range 5) 9340 | -6/Lower Caves | Identified exit to Data Miner 9341 | -6/Lower Caves | Entered Data Miner 9343 | -6/Data Miner | Discovered new exit (range 6) 9375 | -6/Data Miner | Met Data Miner 9406 | -6/Data Miner | Learned location of Section 7 (-2) 9406 | -6/Data Miner | Acquired the access code to Warlord's prototype stash 9443 | -6/Data Miner | Received God Mode back door access code from Data Miner 9484 | -6/Data Miner | Identified exit to Proximity Caves 9486 | -6/Data Miner | Entered Proximity Caves 9526 | -5/Proximity Caves | Destroyed 10 combat bots 9742 | -5/Proximity Caves | Spotted B-75 Beast 9744 | -5/Proximity Caves | Escorted by Enhanced Grunt 10030 | -5/Proximity Caves | Learned Factory trap positions 10051 | -5/Proximity Caves | Discovered exit to Factory (range 13) 10075 | -5/Proximity Caves | Crushed by falling debris 10084 | -5/Proximity Caves | Entered Factory 10084 | -5/Factory | Evolved 2 slots: Utility x2 10085 | -5/Factory | Identified exit to Factory 10086 | -5/Factory | Loaded intel: 110 trap records 10577 | -5/Factory | Discovered new exit (range 23) 10600 | -5/Factory | Build established: Hacker-Skirmisher 10619 | -5/Factory | Discovered exit to Factory (range 23) 11136 | -5/Factory | System corruption reached 10% 11172 | -5/Factory | Lost 4 parts (1n2u1w) 11370 | -5/Factory | Incoming investigation squad redirected 11386 | -5/Factory | Repaired Arm. Huge Wheel 11426 | -5/Factory | Identified exit to Extension 11433 | -5/Factory | Entered Extension 11441 | -5/Extension | Disrupted transfer network 11448 | -5/Extension | Build established: Hacker-Mutant 11550 | -5/Extension | Spotted B-75 Beast 11558 | -5/Extension | Destroyed B-75 Beast 11569 | -5/Extension | Spotted B-75 Beast 11577 | -5/Extension | Destroyed B-75 Beast 11608 | -5/Extension | Core integrity fell below 50% 11692 | -5/Extension | Lost 10 parts (2p4n2u2w) 11759 | -5/Extension | Rescued a captive Derelict 11759 | -5/Extension | Rescued a captive Derelict 11782 | -5/Extension | Rescued a captive Derelict 11891 | -5/Extension | Repaired Arm. Huge Wheel 12021 | -5/Extension | Build established: Mutant 12090 | -5/Extension | Rescued A7 12139 | -5/Extension | Rescued a captive Derelict 12140 | -5/Extension | Rescued a captive Derelict 12172 | -5/Extension | Discovered exit to Factory (range 10) 12173 | -5/Extension | Discovered new exit (range 6) 12283 | -5/Extension | Identified exit to Cetus 12290 | -5/Extension | Entered Cetus 12290 | -5/Cetus | Accompanied by 3 allies (A7) 12295 | -5/Cetus | Acquired a Cetus Manufacturing Module code from A7 12314 | -5/Cetus | Spotted Cetus Guard 12314 | -5/Cetus | Spotted Cetus Guard 12316 | -5/Cetus | Spotted Cetus Guard 12323 | -5/Cetus | Allies destroyed Cetus Guard 12323 | -5/Cetus | Core integrity fell below 20% 12331 | -5/Cetus | Allies destroyed Cetus Guard 12332 | -5/Cetus | Allies destroyed Cetus Guard 12333 | -5/Cetus | Spotted Cetus Guard 12341 | -5/Cetus | Allies destroyed Cetus Guard 12520 | -5/Cetus | Started Cetus Manufacturing Module 12545 | -5/Cetus | Manufactured an Enhanced Grunt 12545 | -5/Cetus | Cetus Manufacturing Module disabled 12672 | -5/Cetus | Build established: Scavenger-Tank 12711 | -5/Cetus | Discovered new exit (range 16) 12800 | -5/Cetus | Spotted Cetus Guard 12800 | -5/Cetus | Spotted Cetus Guard 12801 | -5/Cetus | Allies destroyed Cetus Guard 12801 | -5/Cetus | Destroyed Cetus Guard 12806 | -5/Cetus | Spotted Cetus Guard 12811 | -5/Cetus | Allies destroyed Cetus Guard 12819 | -5/Cetus | Destroyed Cetus Guard 12854 | -5/Cetus | Discovered exit to Factory (range 16) 12862 | -5/Cetus | Met Revision 17 12985 | -5/Cetus | Entered Factory 12985 | -4/Factory | Accompanied by 1 ally (A7) 12985 | -4/Factory | Evolved 2 slots: Power x1, Utility x1 13293 | -4/Factory | Discovered new exit (range 14) 13401 | -4/Factory | Identified exit to Upper Caves 13503 | -4/Factory | Entered Upper Caves 13556 | -4/Upper Caves | Encountered a Warlord checkpoint 13663 | -4/Upper Caves | Attracted the attention of an 0b10 base 13718 | -4/Upper Caves | Destroyed 7 combat bots 13721 | -4/Upper Caves | Lost 4 parts (1p1u2w) 14355 | -4/Upper Caves | Discovered new exit (range 6) 14363 | -4/Upper Caves | Identified exit to Upper Caves 14364 | -4/Upper Caves | Entered another Upper Caves area 14398 | -4/Upper Caves | Discovered new exit (range 11) 14412 | -4/Upper Caves | Identified exit to Research 14433 | -4/Upper Caves | Attracted the attention of an 0b10 checkpoint 14541 | -4/Upper Caves | Encountered a Warlord checkpoint 14620 | -4/Upper Caves | Learned Research stockpile data 14797 | -4/Upper Caves | Attracted the attention of an 0b10 base 14853 | -4/Upper Caves | Destroyed 12 combat bots 15090 | -4/Upper Caves | Build established: Scavenger-Mutant 15179 | -4/Upper Caves | Discovered new exit (range 7) 15188 | -4/Upper Caves | Identified exit to Zhirov 15219 | -4/Upper Caves | Entered Zhirov 15219 | -4/Zhirov | Discovered new exit (range 3) 15226 | -4/Zhirov | Identified exit to Proximity Caves 15251 | -4/Zhirov | Met Zhirov 15298 | -4/Zhirov | Learned location of Command (-1) 15298 | -4/Zhirov | Learned location of Quarantine (-2) 15298 | -4/Zhirov | Learned location of Testing (-3) 15312 | -4/Zhirov | Zhirov requested help retrieving the SGEMP Prototype 15425 | -4/Zhirov | Found Alien Artifact 15425 | -4/Zhirov | Identified Integrated Reactor 15425 | -4/Zhirov | Installed Integrated Reactor, increased core energy generation (+10) 15453 | -4/Zhirov | Found Alien Artifact 15550 | -4/Zhirov | Entered Proximity Caves 16037 | -3/Proximity Caves | Build established: Scavenger-Gunner 16096 | -3/Proximity Caves | Discovered exit to Research (range 3) 16110 | -3/Proximity Caves | Entered Research 16110 | -3/Research | Evolved 2 slots: Utility x1, Weapon x1 16395 | -3/Research | Garrison activated, responded to threat 16481 | -3/Research | Build established: Scavenger-Tank 16832 | -3/Research | Assembled infested ambush trap array 16845 | -3/Research | Identified Transdimensional Reconstructor 16845 | -3/Research | Warped through subspace 16943 | -3/Research | Found Antimissile System 17062 | -3/Research | Build established: Scavenger-Gunner 17231 | -3/Research | System corruption reached 10% 17267 | -3/Research | Lost 3 parts (1p1n1w) 17464 | -3/Research | Found Antimissile System 17787 | -3/Research | Discovered new exit (range 15) 17854 | -3/Research | Identified exit to Research 17856 | -3/Research | Entered another Research area 17856 | -2/Research | Evolved 2 slots: Utility x2 18030 | -2/Research | Spotted B-90 Cyclops 18061 | -2/Research | Destroyed B-90 Cyclops 18169 | -2/Research | Discovered new exit (range 11) 18217 | -2/Research | Identified exit to Access 18256 | -2/Research | Entered Access 18256 | -1/Access | Evolved 2 slots: Utility x1, Weapon x1 18588 | -1/Access | Destroyed 8 combat bots 18589 | -1/Access | System corruption reached 10% 18706 | -1/Access | Lost 5 parts (1p2u2w) 18801 | -1/Access | First assault squad dispatched 18857 | -1/Access | Garrison activated, responded to threat 18914 | -1/Access | System corruption reached 30% 19062 | -1/Access | Lost 20 parts (2p2n4u12w) 19065 | -1/Access | Incoming assault squad redirected 19077 | -1/Access | Released all parts (9) 19102 | -1/Access | Core integrity fell below 50% 19105 | -1/Access | Lost 4 parts (1p1n2u) 19112 | -1/Access | Core integrity fell below 20% 19120 | -1/Access | Destroyed by H-88 Terminator with KE Penetrator Last Messages --------------- 19077_ Extracted 1 energy. 19080_ R-10 Processor collects Imp. Linear Gravjet. 19086_ System corrupted: Heat flow error (+272). 19091_ Slammed into S-43 Plague. 19093_ W-44 Eye sends out distress signal. 19097_ Slug penetrates Wall. 19103_ System corrupted: Substantial component data lost. 19103_ Slammed into B-74 Champion. 19104_ Knocked back. 19105_ Slug penetrates Wall. 19106_ Door malfunctions. 19107_ G-73 Enforcer destroyed. 19109_ Slug penetrates Wall. 19115_ Slug penetrates G-73 Enforcer. 19115_ B-74 Champion destroyed. 19117_ P-80 Master resets G-73 Enforcer, system corruption cleaned. 19119_ System corrupted: Energy discharge (-34). 19119_ K-01 Serf collects debris. 19120_ P-80 Master resets S-43 Plague, system corruption cleaned. 19120_ Slug penetrates Wall. Map ----- +----------------------------------------------------+ | #### ##????????????????????????????????????? | | ?# = ##???????????????????????????????????? | | ?# #???????????????????????????????????? | | ?# # ! # #########?????????????????????????????? | | ### * *# ## #?????????????????????????????? | | =%% |#* #?????????????????????????????? | | ## !## #?????????????????????????????? | | ==## #?????????????????????????????? | | #| =#[ #?????????????????????????????? | | #=!%=## #?????????????????????????????? | | # != ##?????? #??????????????Y??????????????? | | ! * !##?????????????????????????????????????? | | ##### ! ##?????????????????????????????????????? | | # ##?????????????????????????????????????? | | !% ##????? ?##########????????????????????? | | " =% #######+## ????????????????????? | | " ==% """" k w ???????????w?????????? | | """"" ?????????????????????? | | * * % "F "" ?????????????????????? | | # !!! k """"????????????????????? | | ###=!! """""" ?????????????????? | | ##!! """""" ""?????????????? | | #### # """""" """????????????? | | # # # """""" """""??????????? | | # ##### g ????????? | | ##???## @ ????????? | | ####### g s ????????? | | ##^ g b ################ ????????? | | ## ^ h g # #?????????????????????? | | " # [ pg # #?????????????????????? | | " # %! *p / #?????????????????????? | | " %/ * g # w #?????????????????????? | | " # # #?????????????????????? | | " # % # #?????????????????????? | | ####/######### ! #?????????????????????? | | # % ## #?????????????????????? | | ###### ## #?????????????????????? | | ?????# ###########?????????????????????? | | ?????# """"" #???????????????????????????????? | | ?????# """"" #???????????????????????????????? | | ?????# """"" #???????????????????????????????? | | ?????# """"" #???????????????????????????????? | | ?????# """"" #???????????????????????????????? | | ?????# """"" #???????????????????????????????? | | ?????# #???????????????????????????????? | | ?????# #???????????????????????????????? | | ?????# #???????????????????????????????? | | ?????# #???????????????????????????????? | | ?????#############???????????????????????????????? | | ?????????????????????????????????????????????????? | +----------------------------------------------------+ Best States ------------- Heat Dissipation 154 Coolant Potential 80 Energy Generation 64 Energy Capacity 2580 Matter Stores 300 Matter Capacity 450 Sight Range 16 Terrain Scan Range 24 Terrain Scan Density 210 Power Amplification 30 Heat Shielding 100 Armor Coverage 1200 Resistance: EM 20 Weapon Shielding 90 Point Defense Rating 240 Weapon Cycling 15 Evasion (%) 50 Targeting Accuracy 16 Launcher Accuracy 20 Target Analysis 5 Core Analysis 10 Recoil Reduction 6 Matter Filtering 50 Particle Charging 20 Stasis Canceling 2 Offensive Hacking 26 Item Schematics ----------------- Combat Drone Bay | -6/Data Miner | Free Lgt. Regenerative Plating | -6/Data Miner | Free Exp. Flexi-carbon Leg | -6/Data Miner | Free Exp. Sensor Array | -6/Data Miner | Free Exp. Terrain Scanner | -6/Data Miner | Free Exp. Targeting Computer | -6/Data Miner | Free Tactical Coordination Suite | -6/Data Miner | Free Exp. ECM Suite | -6/Data Miner | Free Mni. Smartbomb Launcher | -6/Data Miner | Free Kinetic Spear | -6/Data Miner | Free Arm. Huge Wheel | -5/Factory | Scanalyzed Hrd. Medium Armor Plating | -5/Factory | Scanalyzed Imp. Cooling System | -5/Factory | Scanalyzed Assault Drone Bay | -4/Zhirov | Free Exp. Heat Sink | -4/Zhirov | Free Exp. Optical Array | -4/Zhirov | Free Imp. Arc Thrower | -4/Zhirov | Free Robot Schematics ------------------ S-27 Virus | -6/Data Miner | Free G-50 Soldier | -6/Data Miner | Free G-67 Veteran | -6/Data Miner | Free L-41 Fighter | -6/Data Miner | Free I-36 Angel | -6/Data Miner | Free I-47 Archangel | -6/Data Miner | Free Fabricated ------------ Imp. Shock Absorption System | x1 | -7/Factory | Preloaded Adv. Remote Datajack | x1 | -6/Factory | Preloaded Alien Tech Used ----------------- Integrated Reactor Transdimensional Reconstructor Achievements -------------- No Explosion For You Project G-00 Revising The Future Challenges ------------ None Game ------ Seed GravityIonTerrabomb Manual? 0 Play Time 03:41:51 Cumulative 38.6 hours Start 2020.11.16 @ 20:40:40 End 2020.11.17 @ 01:22:22 Sessions 1 Manual Loads 0 Difficulty Rogue Special Mode Halloween2020/ForbiddenLore Game No. 28 Rogue 28 Adventurer 0 Explorer 0 Win Type - Total 0 Types 0/0/0/0/0/0/0/0/0 Lore% 36 Gallery% 42 Achievement% 34 Wizard Run 0 Options --------- ASCII 0 Keyboard 1 Movement Numpad Keybinds 0 Fullscreen 2 Font 18/SmallcapsGlow Map View 76x50 Tactical HUD 1 Map Filters NONE Filters NONE Steam 1 RUN: b5e39f50-0ad3-4c18-8b0e-f389862b9a11